[Event "Titled Tuesday Blitz June 6 Early 2023"]
[White "Tomaszewski, Kacper"]
[Black "Tang, Andrew"]
[WhiteFideId "1127373"]
[BlackFideId "2059630"]
[WhiteElo "2211"]
[BlackElo "2600"]
[Result "0-1"]
[Round "1"]
[TimeControl "180+2"]
[Date "2023.06.06"]
[WhiteClock "0:00:01"]
[BlackClock "0:00:05"]
[Board "31"]

1. d4 {[%clk 0:03:00]}  d5 {[%clk 0:02:59]} 2. c4 {[%clk 0:03:00]}  e6 {[%clk 0:02:59]} 3. Nc3 {[%clk 0:03:00]}  Be7 {[%clk 0:02:59]} 4. Nf3 {[%clk 0:02:59]}  Nf6 {[%clk 0:03:00]} 5. Bg5 {[%clk 0:02:58]}  h6 {[%clk 0:03:00]} 6. Bxf6 {[%clk 0:02:56]}  Bxf6 {[%clk 0:03:01]} 7. e3 {[%clk 0:02:57]}  O-O {[%clk 0:03:01]} 8. cxd5 {[%clk 0:02:56]}  exd5 {[%clk 0:03:02]} 9. Bd3 {[%clk 0:02:56]}  c5 {[%clk 0:02:47]} 10. O-O {[%clk 0:02:52]}  Nc6 {[%clk 0:02:43]} 11. dxc5 {[%clk 0:02:52]}  Bxc3 {[%clk 0:02:43]} 12. bxc3 {[%clk 0:02:52]}  Qa5 {[%clk 0:02:44]} 13. c4 {[%clk 0:02:19]}  dxc4 {[%clk 0:02:33]} 14. Bxc4 {[%clk 0:02:20]}  Qxc5 {[%clk 0:02:34]} 15. Qd5 {[%clk 0:02:20]}  Qe7 {[%clk 0:02:29]} 16. Bb5 {[%clk 0:02:01]}  Rd8 {[%clk 0:02:22]} 17. Qc4 {[%clk 0:01:48]}  Be6 {[%clk 0:02:19]} 18. Qe4 {[%clk 0:01:45]}  Qd6 {[%clk 0:01:25]} 19. Bxc6 {[%clk 0:01:43]}  bxc6 {[%clk 0:01:26]} 20. Qe5 {[%clk 0:01:35]}  c5 {[%clk 0:01:15]} 21. Rfc1 {[%clk 0:01:32]}  Rac8 {[%clk 0:01:00]} 22. h3 {[%clk 0:01:28]}  Qe7 {[%clk 0:00:41]} 23. Rc3 {[%clk 0:01:26]}  Rd5 {[%clk 0:00:40]} 24. Qe4 {[%clk 0:01:23]}  Qd6 {[%clk 0:00:39]} 25. Qc2 {[%clk 0:01:09]}  Bf5 {[%clk 0:00:32]} 26. e4 {[%clk 0:01:03]}  Bg6 {[%clk 0:00:32]} 27. Qa4 {[%clk 0:00:47]}  Rd3 {[%clk 0:00:17]} 28. e5 {[%clk 0:00:34]}  Qe7 {[%clk 0:00:12]} 29. Rac1 {[%clk 0:00:28]}  Rd5 {[%clk 0:00:08]} 30. Qa6 {[%clk 0:00:25]}  Rc7 {[%clk 0:00:05]} 31. Qc4 {[%clk 0:00:14]}  Qe6 {[%clk 0:00:05]} 32. Qb5 {[%clk 0:00:11]}  Be4 {[%clk 0:00:04]} 33. Rxc5 {[%clk 0:00:09]}  Rcxc5 {[%clk 0:00:04]} 34. Rxc5 {[%clk 0:00:10]}  Bxf3 {[%clk 0:00:04]} 35. gxf3 {[%clk 0:00:05]}  Rd1+ {[%clk 0:00:05]} 36. Kh2 {[%clk 0:00:04]}  Qg6 {[%clk 0:00:05]} 37. Qe8+ {[%clk 0:00:01]}  Kh7 {[%clk 0:00:05]} 0-1


[Site "https://www.chess.com"]

[Event "Titled Tuesday Blitz June 6 Early 2023"]
[White "Rustemov, Alexander"]
[Black "Lehtosaari, Mauri"]
[WhiteFideId "4119002"]
[BlackFideId "501999"]
[WhiteElo "2884"]
[BlackElo "2468"]
[Result "1-0"]
[Round "1"]
[TimeControl "180+2"]
[Date "2023.06.06"]
[WhiteClock "0:00:19"]
[BlackClock "0:00:09"]
[Board "32"]

1. d4 {[%clk 0:03:00]}  d5 {[%clk 0:02:56]} 2. c4 {[%clk 0:03:00]}  c6 {[%clk 0:02:32]} 3. Nc3 {[%clk 0:03:00]}  Nf6 {[%clk 0:02:32]} 4. e3 {[%clk 0:03:00]}  a6 {[%clk 0:02:31]} 5. Qc2 {[%clk 0:02:59]}  g6 {[%clk 0:02:29]} 6. Nf3 {[%clk 0:02:58]}  Bf5 {[%clk 0:02:27]} 7. Qb3 {[%clk 0:02:56]}  b5 {[%clk 0:02:26]} 8. cxd5 {[%clk 0:02:55]}  cxd5 {[%clk 0:02:26]} 9. a4 {[%clk 0:02:56]}  bxa4 {[%clk 0:02:23]} 10. Nxa4 {[%clk 0:02:47]}  Nbd7 {[%clk 0:02:20]} 11. Be2 {[%clk 0:02:43]}  Bg7 {[%clk 0:02:20]} 12. O-O {[%clk 0:02:42]}  O-O {[%clk 0:02:20]} 13. Bd2 {[%clk 0:02:37]}  a5 {[%clk 0:02:13]} 14. Rfc1 {[%clk 0:02:33]}  h6 {[%clk 0:02:05]} 15. h3 {[%clk 0:02:25]}  g5 {[%clk 0:02:03]} 16. Nc5 {[%clk 0:02:19]}  Ne4 {[%clk 0:02:02]} 17. Nxe4 {[%clk 0:01:53]}  Bxe4 {[%clk 0:01:42]} 18. Qa4 {[%clk 0:01:49]}  Nb6 {[%clk 0:01:33]} 19. Qb5 {[%clk 0:01:48]}  Nc8 {[%clk 0:01:11]} 20. Bxa5 {[%clk 0:01:46]}  Qd6 {[%clk 0:01:04]} 21. Bb4 {[%clk 0:01:39]}  Rxa1 {[%clk 0:01:04]} 22. Rxa1 {[%clk 0:01:39]}  Qe6 {[%clk 0:00:58]} 23. Ra6 {[%clk 0:01:36]}  Nd6 {[%clk 0:00:58]} 24. Bxd6 {[%clk 0:01:30]}  exd6 {[%clk 0:00:59]} 25. Qc6 {[%clk 0:01:25]}  Rb8 {[%clk 0:00:56]} 26. Ra8 {[%clk 0:01:23]}  Rxa8 {[%clk 0:00:56]} 27. Qxa8+ {[%clk 0:01:24]}  Kh7 {[%clk 0:00:57]} 28. Qc6 {[%clk 0:01:07]}  Qe7 {[%clk 0:00:55]} 29. b4 {[%clk 0:01:04]}  Qa7 {[%clk 0:00:44]} 30. Qc1 {[%clk 0:00:57]}  Qa2 {[%clk 0:00:41]} 31. Kf1 {[%clk 0:00:53]}  Qb3 {[%clk 0:00:40]} 32. b5 {[%clk 0:00:52]}  Bd3 {[%clk 0:00:40]} 33. Qd2 {[%clk 0:00:34]}  Bxb5 {[%clk 0:00:36]} 34. Bxb5 {[%clk 0:00:32]}  Qb1+ {[%clk 0:00:31]} 35. Ne1 {[%clk 0:00:26]}  Qxb5+ {[%clk 0:00:31]} 36. Qd3+ {[%clk 0:00:26]}  Qxd3+ {[%clk 0:00:30]} 37. Nxd3 {[%clk 0:00:27]}  Kg6 {[%clk 0:00:23]} 38. Nb4 {[%clk 0:00:28]}  Kf5 {[%clk 0:00:23]} 39. Nxd5 {[%clk 0:00:28]}  Ke6 {[%clk 0:00:24]} 40. Nc3 {[%clk 0:00:27]}  d5 {[%clk 0:00:24]} 41. g4 {[%clk 0:00:26]}  Bf8 {[%clk 0:00:24]} 42. Ke2 {[%clk 0:00:26]}  Bb4 {[%clk 0:00:25]} 43. Kd3 {[%clk 0:00:26]}  Ba5 {[%clk 0:00:23]} 44. Ne2 {[%clk 0:00:26]}  Bc7 {[%clk 0:00:20]} 45. f3 {[%clk 0:00:25]}  Bd6 {[%clk 0:00:19]} 46. e4 {[%clk 0:00:25]}  Bc7 {[%clk 0:00:18]} 47. Nc3 {[%clk 0:00:23]}  dxe4+ {[%clk 0:00:18]} 48. fxe4 {[%clk 0:00:24]}  Bf4 {[%clk 0:00:17]} 49. Nd5 {[%clk 0:00:19]}  Bb8 {[%clk 0:00:15]} 50. Ne3 {[%clk 0:00:20]}  Bd6 {[%clk 0:00:09]} 51. Nf5 {[%clk 0:00:20]}  Bf8 {[%clk 0:00:10]} 52. e5 {[%clk 0:00:19]}  Kd5 {[%clk 0:00:09]} 53. Ne3+ {[%clk 0:00:19]}  Ke6 {[%clk 0:00:09]} 54. Ke4 {[%clk 0:00:20]}  Ba3 {[%clk 0:00:07]} 55. d5+ {[%clk 0:00:19]}  Ke7 {[%clk 0:00:08]} 56. Nf5+ {[%clk 0:00:19]}  Kf8 {[%clk 0:00:08]} 57. Nxh6 {[%clk 0:00:19]}  Kg7 {[%clk 0:00:08]} 58. Nf5+ {[%clk 0:00:19]}  Kg6 {[%clk 0:00:09]} 59. d6 {[%clk 0:00:19]}  f6 {[%clk 0:00:09]} 60. e6 {[%clk 0:00:19]} 1-0


[Site "https://www.chess.com"]

[Event "Titled Tuesday Blitz June 6 Early 2023"]
[White "Hirneise, Jens"]
[Black "Ahmadzada, Ahmad"]
[WhiteFideId "24614734"]
[BlackFideId "13413007"]
[WhiteElo "2345"]
[BlackElo "2388"]
[Result "0-1"]
[Round "1"]
[TimeControl "180+2"]
[Date "2023.06.06"]
[WhiteClock "0:01:53"]
[BlackClock "0:02:21"]
[Board "33"]

1. d4 {[%clk 0:02:58]}  Nf6 {[%clk 0:02:59]} 2. Bf4 {[%clk 0:02:57]}  b6 {[%clk 0:02:58]} 3. Nf3 {[%clk 0:02:55]}  Bb7 {[%clk 0:02:58]} 4. e3 {[%clk 0:02:56]}  e6 {[%clk 0:02:58]} 5. Be2 {[%clk 0:02:55]}  Be7 {[%clk 0:02:58]} 6. O-O {[%clk 0:02:55]}  Nh5 {[%clk 0:02:58]} 7. Bg3 {[%clk 0:02:53]}  Nxg3 {[%clk 0:02:59]} 8. hxg3 {[%clk 0:02:54]}  O-O {[%clk 0:02:58]} 9. c4 {[%clk 0:02:54]}  c5 {[%clk 0:02:58]} 10. Nc3 {[%clk 0:02:54]}  d6 {[%clk 0:02:54]} 11. d5 {[%clk 0:02:51]}  e5 {[%clk 0:02:54]} 12. e4 {[%clk 0:02:51]}  Nd7 {[%clk 0:02:53]} 13. Ne1 {[%clk 0:02:47]}  g6 {[%clk 0:02:54]} 14. Nd3 {[%clk 0:02:45]}  Kg7 {[%clk 0:02:53]} 15. f4 {[%clk 0:02:44]}  exf4 {[%clk 0:02:53]} 16. gxf4 {[%clk 0:02:41]}  Bf6 {[%clk 0:02:54]} 17. e5 {[%clk 0:02:38]}  dxe5 {[%clk 0:02:54]} 18. f5 {[%clk 0:02:38]}  e4 {[%clk 0:02:54]} 19. Nxe4 {[%clk 0:02:38]}  Bd4+ {[%clk 0:02:55]} 20. Ndf2 {[%clk 0:02:33]}  Qh4 {[%clk 0:02:53]} 21. Qd3 {[%clk 0:02:29]}  Ne5 {[%clk 0:02:53]} 22. f6+ {[%clk 0:02:25]}  Kh8 {[%clk 0:02:51]} 23. Qh3 {[%clk 0:02:23]}  Qxe4 {[%clk 0:02:49]} 24. Qh6 {[%clk 0:02:22]}  Rg8 {[%clk 0:02:49]} 25. Rae1 {[%clk 0:02:20]}  Qe3 {[%clk 0:02:45]} 26. Qh4 {[%clk 0:02:13]}  g5 {[%clk 0:02:43]} 27. Qh5 {[%clk 0:02:12]}  Qg3 {[%clk 0:02:34]} 28. Bd1 {[%clk 0:02:00]}  Rae8 {[%clk 0:02:30]} 29. Bc2 {[%clk 0:01:59]}  Bxf2+ {[%clk 0:02:28]} 30. Rxf2 {[%clk 0:01:57]}  Nf3+ {[%clk 0:02:28]} 31. Rxf3 {[%clk 0:01:56]}  Rxe1+ {[%clk 0:02:28]} 32. Rf1 {[%clk 0:01:56]}  Rxf1+ {[%clk 0:02:26]} 33. Kxf1 {[%clk 0:01:57]}  Qf4+ {[%clk 0:02:26]} 34. Kg1 {[%clk 0:01:56]}  Qc1+ {[%clk 0:02:24]} 35. Bd1 {[%clk 0:01:53]}  Rg6 {[%clk 0:02:21]} 0-1


[Site "https://www.chess.com"]

[Event "Titled Tuesday Blitz June 6 Early 2023"]
[White "Dushyant Sharma"]
[Black "Nguyen, Ngoc Truong Son"]
[WhiteFideId "25065130"]
[BlackFideId "12401110"]
[WhiteElo "2198"]
[BlackElo "2556"]
[Result "0-1"]
[Round "1"]
[TimeControl "180+2"]
[Date "2023.06.06"]
[WhiteClock "0:00:17"]
[BlackClock "0:01:23"]
[Board "35"]

1. e4 {[%clk 0:03:00]}  c5 {[%clk 0:02:59]} 2. Nf3 {[%clk 0:03:01]}  e6 {[%clk 0:02:59]} 3. d4 {[%clk 0:03:01]}  cxd4 {[%clk 0:02:59]} 4. Nxd4 {[%clk 0:03:02]}  a6 {[%clk 0:02:59]} 5. Nc3 {[%clk 0:03:01]}  b5 {[%clk 0:02:59]} 6. f4 {[%clk 0:02:59]}  Bb7 {[%clk 0:02:59]} 7. Bd3 {[%clk 0:03:00]}  Nc6 {[%clk 0:02:58]} 8. Be3 {[%clk 0:02:58]}  Nf6 {[%clk 0:02:57]} 9. e5 {[%clk 0:02:55]}  Nxd4 {[%clk 0:02:57]} 10. Bxd4 {[%clk 0:02:53]}  Nd5 {[%clk 0:02:57]} 11. Nxd5 {[%clk 0:02:48]}  Bxd5 {[%clk 0:02:58]} 12. O-O {[%clk 0:02:49]}  g6 {[%clk 0:02:57]} 13. a4 {[%clk 0:02:47]}  b4 {[%clk 0:02:56]} 14. Qe2 {[%clk 0:02:38]}  a5 {[%clk 0:02:53]} 15. c4 {[%clk 0:02:21]}  bxc3 {[%clk 0:02:46]} 16. bxc3 {[%clk 0:02:11]}  Be7 {[%clk 0:02:45]} 17. Be4 {[%clk 0:01:54]}  Bxe4 {[%clk 0:02:44]} 18. Qxe4 {[%clk 0:01:55]}  O-O {[%clk 0:02:43]} 19. Rad1 {[%clk 0:01:44]}  Qc7 {[%clk 0:02:41]} 20. Rd3 {[%clk 0:01:39]}  Qc6 {[%clk 0:02:27]} 21. Qxc6 {[%clk 0:01:35]}  dxc6 {[%clk 0:02:28]} 22. Rfd1 {[%clk 0:01:34]}  Rfb8 {[%clk 0:02:24]} 23. Bf2 {[%clk 0:01:28]}  Rb7 {[%clk 0:02:09]} 24. Rd7 {[%clk 0:01:28]}  Rab8 {[%clk 0:02:07]} 25. h3 {[%clk 0:01:14]}  Kf8 {[%clk 0:02:02]} 26. Kh2 {[%clk 0:01:13]}  Ke8 {[%clk 0:01:59]} 27. Ba7 {[%clk 0:00:43]}  Rxd7 {[%clk 0:01:47]} 28. Rxd7 {[%clk 0:00:44]}  Kxd7 {[%clk 0:01:48]} 29. Bxb8 {[%clk 0:00:44]}  Bc5 {[%clk 0:01:48]} 30. Kg3 {[%clk 0:00:37]}  Kc8 {[%clk 0:01:45]} 31. Bd6 {[%clk 0:00:36]}  Bxd6 {[%clk 0:01:45]} 32. exd6 {[%clk 0:00:37]}  Kd7 {[%clk 0:01:45]} 33. Kg4 {[%clk 0:00:37]}  f6 {[%clk 0:01:41]} 34. Kf3 {[%clk 0:00:27]}  Kxd6 {[%clk 0:01:41]} 35. Ke4 {[%clk 0:00:28]}  Kc5 {[%clk 0:01:40]} 36. Kd3 {[%clk 0:00:28]}  h5 {[%clk 0:01:36]} 37. h4 {[%clk 0:00:21]}  Kd5 {[%clk 0:01:33]} 38. c4+ {[%clk 0:00:19]}  Kc5 {[%clk 0:01:33]} 39. Kc3 {[%clk 0:00:17]}  e5 {[%clk 0:01:31]} 40. g3 {[%clk 0:00:17]}  e4 {[%clk 0:01:27]} 41. f5 {[%clk 0:00:14]}  gxf5 {[%clk 0:01:27]} 42. Kd2 {[%clk 0:00:15]}  Kxc4 {[%clk 0:01:24]} 43. Ke3 {[%clk 0:00:16]}  Kd5 {[%clk 0:01:24]} 44. g4 {[%clk 0:00:17]}  fxg4 {[%clk 0:01:23]} 0-1


[Site "https://www.chess.com"]

[Event "Titled Tuesday Blitz June 6 Early 2023"]
[White "LangesNasenhaar"]
[Black "Galchenko, Matvey"]
[BlackFideId "24175480"]
[WhiteElo "2461"]
[BlackElo "2423"]
[Result "0-1"]
[Round "1"]
[TimeControl "180+2"]
[Date "2023.06.06"]
[WhiteClock "0:00:25"]
[BlackClock "0:01:52"]
[Board "37"]

1. d4 {[%clk 0:02:59]}  Nf6 {[%clk 0:02:58]} 2. Nc3 {[%clk 0:03:00]}  c5 {[%clk 0:02:58]} 3. d5 {[%clk 0:02:59]}  d6 {[%clk 0:02:57]} 4. e4 {[%clk 0:02:59]}  g6 {[%clk 0:02:57]} 5. Nf3 {[%clk 0:02:57]}  Bg7 {[%clk 0:02:57]} 6. Bb5+ {[%clk 0:02:57]}  Bd7 {[%clk 0:02:56]} 7. a4 {[%clk 0:02:57]}  O-O {[%clk 0:02:56]} 8. O-O {[%clk 0:02:57]}  Bxb5 {[%clk 0:02:54]} 9. axb5 {[%clk 0:02:57]}  a6 {[%clk 0:02:54]} 10. Qe2 {[%clk 0:02:49]}  Ne8 {[%clk 0:02:53]} 11. Bd2 {[%clk 0:02:45]}  Nc7 {[%clk 0:02:53]} 12. bxa6 {[%clk 0:02:39]}  Rxa6 {[%clk 0:02:52]} 13. Rxa6 {[%clk 0:02:35]}  Nbxa6 {[%clk 0:02:53]} 14. h3 {[%clk 0:02:22]}  Qd7 {[%clk 0:02:51]} 15. e5 {[%clk 0:02:16]}  Nb4 {[%clk 0:02:36]} 16. Rd1 {[%clk 0:01:51]}  Nxc2 {[%clk 0:02:21]} 17. Bf4 {[%clk 0:01:42]}  Nb4 {[%clk 0:02:12]} 18. Qc4 {[%clk 0:01:13]}  b5 {[%clk 0:02:09]} 19. Qb3 {[%clk 0:01:13]}  Nd3 {[%clk 0:02:00]} 20. Bg3 {[%clk 0:01:06]}  c4 {[%clk 0:01:58]} 21. Qa2 {[%clk 0:00:56]}  dxe5 {[%clk 0:01:57]} 22. b3 {[%clk 0:00:49]}  Nxd5 {[%clk 0:01:51]} 23. Nxd5 {[%clk 0:00:37]}  Qxd5 {[%clk 0:01:52]} 24. bxc4 {[%clk 0:00:37]}  bxc4 {[%clk 0:01:52]} 25. Qa7 {[%clk 0:00:32]}  e4 {[%clk 0:01:52]} 26. Nd2 {[%clk 0:00:25]}  c3 {[%clk 0:01:52]} 0-1


[Site "https://www.chess.com"]

[Event "Titled Tuesday Blitz June 6 Early 2023"]
[White "Horak, Martin"]
[Black "Fridman, Daniel"]
[WhiteFideId "367095"]
[BlackFideId "11600454"]
[WhiteElo "2091"]
[BlackElo "2538"]
[Result "0-1"]
[Round "1"]
[TimeControl "180+2"]
[Date "2023.06.06"]
[WhiteClock "0:00:07"]
[BlackClock "0:01:46"]
[Board "39"]

1. d4 {[%clk 0:03:00]}  d5 {[%clk 0:02:58]} 2. c4 {[%clk 0:03:00]}  e6 {[%clk 0:02:57]} 3. Nf3 {[%clk 0:03:00]}  Nf6 {[%clk 0:02:56]} 4. Nc3 {[%clk 0:02:59]}  c6 {[%clk 0:02:54]} 5. e3 {[%clk 0:02:58]}  a6 {[%clk 0:02:53]} 6. Be2 {[%clk 0:02:49]}  Nbd7 {[%clk 0:02:52]} 7. b3 {[%clk 0:02:47]}  Bb4 {[%clk 0:02:51]} 8. Bd2 {[%clk 0:02:47]}  O-O {[%clk 0:02:50]} 9. O-O {[%clk 0:02:43]}  Bd6 {[%clk 0:02:50]} 10. Bd3 {[%clk 0:02:38]}  e5 {[%clk 0:02:50]} 11. dxe5 {[%clk 0:02:37]}  Nxe5 {[%clk 0:02:51]} 12. Nxe5 {[%clk 0:02:33]}  Bxe5 {[%clk 0:02:51]} 13. h3 {[%clk 0:02:23]}  Be6 {[%clk 0:02:44]} 14. cxd5 {[%clk 0:02:12]}  Nxd5 {[%clk 0:02:44]} 15. Rc1 {[%clk 0:02:05]}  Nb4 {[%clk 0:02:42]} 16. Bb1 {[%clk 0:01:57]}  g6 {[%clk 0:02:32]} 17. Ne4 {[%clk 0:01:23]}  a5 {[%clk 0:02:21]} 18. Bc3 {[%clk 0:01:10]}  Bxc3 {[%clk 0:02:18]} 19. Rxc3 {[%clk 0:01:11]}  Qxd1 {[%clk 0:02:17]} 20. Rxd1 {[%clk 0:01:11]}  Rfd8 {[%clk 0:02:17]} 21. Rcc1 {[%clk 0:01:05]}  b6 {[%clk 0:02:07]} 22. Nc3 {[%clk 0:00:54]}  Kf8 {[%clk 0:02:00]} 23. Kf1 {[%clk 0:00:54]}  Ke7 {[%clk 0:01:59]} 24. Ke2 {[%clk 0:00:53]}  f5 {[%clk 0:02:00]} 25. Rxd8 {[%clk 0:00:50]}  Rxd8 {[%clk 0:01:59]} 26. Rd1 {[%clk 0:00:51]}  Ra8 {[%clk 0:01:59]} 27. Na4 {[%clk 0:00:46]}  b5 {[%clk 0:01:59]} 28. Nc5 {[%clk 0:00:45]}  Bd5 {[%clk 0:01:59]} 29. a3 {[%clk 0:00:37]}  Na6 {[%clk 0:01:57]} 30. Nxa6 {[%clk 0:00:20]}  Rxa6 {[%clk 0:01:58]} 31. e4 {[%clk 0:00:20]}  Bxb3 {[%clk 0:01:53]} 32. Rd2 {[%clk 0:00:12]}  Be6 {[%clk 0:01:50]} 33. exf5 {[%clk 0:00:12]}  gxf5 {[%clk 0:01:49]} 34. Ke3 {[%clk 0:00:12]}  b4 {[%clk 0:01:49]} 35. axb4 {[%clk 0:00:11]}  axb4 {[%clk 0:01:50]} 36. Bd3 {[%clk 0:00:12]}  Ra3 {[%clk 0:01:48]} 37. Rc2 {[%clk 0:00:10]}  Kd6 {[%clk 0:01:47]} 38. f3 {[%clk 0:00:07]}  c5 {[%clk 0:01:46]} 39. g4 {[%clk 0:00:07]}  c4 {[%clk 0:01:46]} 0-1


[Site "https://www.chess.com"]

[Event "Titled Tuesday Blitz June 6 Early 2023"]
[White "Sanhueza, Cristian"]
[Black "Sanal, Vahap"]
[WhiteFideId "116815"]
[BlackFideId "6300545"]
[WhiteElo "2174"]
[BlackElo "2606"]
[Result "0-1"]
[Round "1"]
[TimeControl "180+2"]
[Date "2023.06.06"]
[WhiteClock "0:00:02"]
[BlackClock "0:00:39"]
[Board "41"]

1. e4 {[%clk 0:02:55]}  d6 {[%clk 0:02:46]} 2. d4 {[%clk 0:02:46]}  Nf6 {[%clk 0:02:46]} 3. Nc3 {[%clk 0:02:46]}  e5 {[%clk 0:02:46]} 4. Nf3 {[%clk 0:02:35]}  Nbd7 {[%clk 0:02:46]} 5. Bc4 {[%clk 0:02:34]}  Be7 {[%clk 0:02:46]} 6. O-O {[%clk 0:02:34]}  O-O {[%clk 0:02:46]} 7. a4 {[%clk 0:02:30]}  c6 {[%clk 0:02:46]} 8. Qe2 {[%clk 0:02:28]}  h6 {[%clk 0:02:39]} 9. Rd1 {[%clk 0:02:26]}  Qc7 {[%clk 0:02:39]} 10. dxe5 {[%clk 0:02:23]}  Nxe5 {[%clk 0:02:38]} 11. Nxe5 {[%clk 0:02:21]}  dxe5 {[%clk 0:02:39]} 12. h3 {[%clk 0:02:17]}  Bc5 {[%clk 0:02:27]} 13. Qf3 {[%clk 0:02:09]}  Qe7 {[%clk 0:02:26]} 14. Qg3 {[%clk 0:01:47]}  Kh7 {[%clk 0:02:10]} 15. Qh4 {[%clk 0:01:46]}  Be6 {[%clk 0:02:02]} 16. Bd3 {[%clk 0:01:37]}  Rfd8 {[%clk 0:01:38]} 17. Kh1 {[%clk 0:01:37]}  Ng4 {[%clk 0:01:20]} 18. Qxe7 {[%clk 0:01:11]}  Nxf2+ {[%clk 0:01:20]} 19. Kg1 {[%clk 0:01:11]}  Nxd3+ {[%clk 0:01:20]} 20. Qxc5 {[%clk 0:00:59]}  Nxc5 {[%clk 0:01:20]} 21. Be3 {[%clk 0:00:58]}  Na6 {[%clk 0:01:14]} 22. Rxd8 {[%clk 0:00:48]}  Rxd8 {[%clk 0:01:15]} 23. Bxa7 {[%clk 0:00:49]}  Rd2 {[%clk 0:01:13]} 24. Rc1 {[%clk 0:00:41]}  Nb4 {[%clk 0:01:13]} 25. Be3 {[%clk 0:00:41]}  Rxc2 {[%clk 0:01:13]} 26. Rxc2 {[%clk 0:00:41]}  Nxc2 {[%clk 0:01:13]} 27. Bc5 {[%clk 0:00:39]}  f6 {[%clk 0:01:02]} 28. Kf2 {[%clk 0:00:39]}  Kg6 {[%clk 0:01:01]} 29. Ke2 {[%clk 0:00:38]}  Bc4+ {[%clk 0:00:58]} 30. Kd2 {[%clk 0:00:37]}  Na1 {[%clk 0:00:59]} 31. Bb6 {[%clk 0:00:19]}  Bf1 {[%clk 0:00:57]} 32. g3 {[%clk 0:00:14]}  Bxh3 {[%clk 0:00:57]} 33. a5 {[%clk 0:00:14]}  Bf1 {[%clk 0:00:51]} 34. Na4 {[%clk 0:00:13]}  Ba6 {[%clk 0:00:41]} 35. Kc3 {[%clk 0:00:12]}  Kg5 {[%clk 0:00:39]} 36. b4 {[%clk 0:00:11]}  Kg4 {[%clk 0:00:39]} 37. Kb2 {[%clk 0:00:05]}  Kxg3 {[%clk 0:00:39]} 38. Bc5 {[%clk 0:00:04]}  h5 {[%clk 0:00:39]} 39. Nc3 {[%clk 0:00:02]}  h4 {[%clk 0:00:39]} 40. Kxa1 {[%clk 0:00:02]}  h3 {[%clk 0:00:40]} 41. Bg1 {[%clk 0:00:02]}  Kg2 {[%clk 0:00:39]} 0-1


[Site "https://www.chess.com"]

[Event "Titled Tuesday Blitz June 6 Early 2023"]
[White "Mitrabha, Guha"]
[Black "Principe, Alexander"]
[WhiteFideId "5057000"]
[BlackFideId "3804542"]
[WhiteElo "2507"]
[BlackElo "2203"]
[Result "1-0"]
[Round "1"]
[TimeControl "180+2"]
[Date "2023.06.06"]
[WhiteClock "0:00:16"]
[BlackClock "0:00:08"]
[Board "42"]

1. Nf3 {[%clk 0:02:58]}  Nf6 {[%clk 0:02:57]} 2. e3 {[%clk 0:02:55]}  g6 {[%clk 0:02:56]} 3. b3 {[%clk 0:02:55]}  Bg7 {[%clk 0:02:57]} 4. Bb2 {[%clk 0:02:55]}  O-O {[%clk 0:02:58]} 5. d4 {[%clk 0:02:56]}  d6 {[%clk 0:02:56]} 6. Nbd2 {[%clk 0:02:56]}  c5 {[%clk 0:02:54]} 7. Be2 {[%clk 0:02:56]}  Bf5 {[%clk 0:02:52]} 8. c4 {[%clk 0:02:55]}  Nbd7 {[%clk 0:02:52]} 9. d5 {[%clk 0:02:54]}  e5 {[%clk 0:02:50]} 10. Nh4 {[%clk 0:02:52]}  Ne4 {[%clk 0:02:45]} 11. Nxf5 {[%clk 0:02:51]}  gxf5 {[%clk 0:02:46]} 12. Qc2 {[%clk 0:02:43]}  Nxd2 {[%clk 0:02:41]} 13. Qxd2 {[%clk 0:02:44]}  e4 {[%clk 0:02:37]} 14. O-O {[%clk 0:02:43]}  Bxb2 {[%clk 0:02:36]} 15. Qxb2 {[%clk 0:02:42]}  Qf6 {[%clk 0:02:37]} 16. Qd2 {[%clk 0:02:39]}  Ne5 {[%clk 0:02:35]} 17. f4 {[%clk 0:02:37]}  exf3 {[%clk 0:01:57]} 18. Bxf3 {[%clk 0:02:32]}  Qg6 {[%clk 0:01:56]} 19. Be2 {[%clk 0:02:30]}  Rae8 {[%clk 0:01:54]} 20. Rae1 {[%clk 0:02:27]}  Ng4 {[%clk 0:01:53]} 21. Rf3 {[%clk 0:02:07]}  Qh6 {[%clk 0:01:29]} 22. Rh3 {[%clk 0:02:05]}  Qg5 {[%clk 0:01:27]} 23. Bd3 {[%clk 0:01:55]}  Re5 {[%clk 0:00:54]} 24. Rf1 {[%clk 0:01:46]}  Rfe8 {[%clk 0:00:50]} 25. Rff3 {[%clk 0:01:43]}  Kh8 {[%clk 0:00:40]} 26. Rhg3 {[%clk 0:01:36]}  Qh5 {[%clk 0:00:27]} 27. h3 {[%clk 0:01:31]}  Nh6 {[%clk 0:00:27]} 28. Qf2 {[%clk 0:01:28]}  f6 {[%clk 0:00:20]} 29. Be2 {[%clk 0:01:26]}  Qf7 {[%clk 0:00:18]} 30. Rf4 {[%clk 0:01:26]}  Qe7 {[%clk 0:00:18]} 31. Rh4 {[%clk 0:01:25]}  Nf7 {[%clk 0:00:18]} 32. Bd3 {[%clk 0:01:23]}  Ng5 {[%clk 0:00:18]} 33. Bxf5 {[%clk 0:01:18]}  Rxe3 {[%clk 0:00:18]} 34. Rxe3 {[%clk 0:01:10]}  Qxe3 {[%clk 0:00:19]} 35. Rf4 {[%clk 0:01:09]}  Qc1+ {[%clk 0:00:17]} 36. Kh2 {[%clk 0:01:09]}  Re1 {[%clk 0:00:17]} 37. h4 {[%clk 0:01:06]}  Nf7 {[%clk 0:00:17]} 38. Bc2 {[%clk 0:00:38]}  Ne5 {[%clk 0:00:11]} 39. Kg3 {[%clk 0:00:26]}  Re3+ {[%clk 0:00:10]} 40. Kh2 {[%clk 0:00:26]}  Re1 {[%clk 0:00:10]} 41. Be4 {[%clk 0:00:20]}  h5 {[%clk 0:00:08]} 42. Kg3 {[%clk 0:00:17]}  Re3+ {[%clk 0:00:08]} 43. Bf3 {[%clk 0:00:18]}  Kg7 {[%clk 0:00:06]} 44. Rf5 {[%clk 0:00:16]}  Nxf3 {[%clk 0:00:06]} 45. Rxf3 {[%clk 0:00:16]}  Rxf3+ {[%clk 0:00:05]} 46. Qxf3 {[%clk 0:00:17]}  Qh6 {[%clk 0:00:05]} 47. Kh2 {[%clk 0:00:16]}  Qg6 {[%clk 0:00:06]} 48. Qf4 {[%clk 0:00:16]}  Qg4 {[%clk 0:00:05]} 49. Qxg4+ {[%clk 0:00:14]}  hxg4 {[%clk 0:00:06]} 50. Kg3 {[%clk 0:00:15]}  f5 {[%clk 0:00:07]} 51. Kf4 {[%clk 0:00:15]}  Kg6 {[%clk 0:00:07]} 52. g3 {[%clk 0:00:15]}  Kf6 {[%clk 0:00:07]} 53. h5 {[%clk 0:00:15]}  a6 {[%clk 0:00:06]} 54. a3 {[%clk 0:00:13]}  a5 {[%clk 0:00:06]} 55. a4 {[%clk 0:00:13]}  b6 {[%clk 0:00:07]} 56. h6 {[%clk 0:00:14]}  Kg6 {[%clk 0:00:07]} 57. h7 {[%clk 0:00:15]}  Kxh7 {[%clk 0:00:08]} 58. Kxf5 {[%clk 0:00:16]} 1-0


[Site "https://www.chess.com"]